bitfinex/quotes_SOLUSD_20241009
["timestamp","ask_amount","ask_price","bid_price","bid_amount"]
[1728447215813,17.3436,144.15,144.07,43.67283519]
[1728447216018,6.9391,144.11,144.07,43.67283519]
[1728447217012,6.9391,144.11,144.07,12.95535119]
[1728447217209,6.9391,144.11,144.06,30.6169]
[1728447217402,17.3436,144.15,144.06,30.6169]
[1728447217714,6.9398,144.1,144.06,30.6169]
[1728447219315,17.3436,144.15,144.06,30.6169]
[1728447219616,6.9392,144.11,144.06,30.6169]
[1728447223998,6.9392,144.11,144.06,23.6755]
[1728447224215,6.9392,144.11,144.07,43.67323519]
[1728447228428,6.9388,144.12,144.07,43.67323519]
[1728447238841,6.9382,144.13,144.08,6.9401]
[1728447239014,1.73497255,144.14,144.08,6.9401]
[1728447239015,8.67297255,144.14,144.09,30.716584]
[1728447239570,6.9382,144.13,144.09,30.716584]
[1728447240020,1.73462232,144.16,144.08,39.5203]
[1728447240212,6.9388,144.12,144.08,39.5203]
[1728447243249,6.9394,144.11,144.08,15.229]
[1728447245630,19.07692232,144.16,144.08,15.229]
[1728447245631,6.9387,144.12,144.08,15.229]
[1728447252658,6.9391,144.11,144.08,15.229]
[1728447257975,6.9397,144.1,144.08,15.229]
[1728447258151,6.9401,144.09,144.06,6.3225]
[1728447262174,6.9397,144.1,144.06,13.2639]
[1728447271281,1.73507139,144.13,144.06,6.3225]
[1728447271492,6.9401,144.09,144.06,6.3225]
[1728447276495,1.73507139,144.13,144.06,6.3225]
[1728447276679,6.9396,144.1,144.06,6.3225]
[1728447280397,6.9396,144.1,144.06,7.71059611]
[1728447281992,6.9396,144.1,144.06,6.3225]
[1728447282203,6.9396,144.1,144.06,7.71059673]
[1728447283196,6.9396,144.1,144.06,14.65209673]
[1728447283890,6.9396,144.1,144.06,13.264]
[1728447284695,6.9396,144.1,144.06,14.6520962]
[1728447285372,6.9396,144.1,144.06,13.264]
[1728447286278,6.9396,144.1,144.06,6.3225]
[1728447287995,6.9396,144.1,144.06,7.71058705]
[1728447288297,6.9396,144.1,144.06,13.2639]
[1728447292400,6.9406,144.08,144.05,17.3542]
[1728447293384,6.9402,144.09,144.05,17.3542]
[1728447296993,6.9402,144.09,144.05,37.25135119]
[1728447297195,6.9396,144.1,144.06,8.32947901]
[1728447297391,6.9396,144.1,144.06,6.9413]
[1728447299404,6.9396,144.1,144.06,8.32939697]
[1728447300512,6.9396,144.1,144.06,6.9413]
[1728447300692,6.9396,144.1,144.05,24.296]
[1728447301693,6.9396,144.1,144.06,6.9414]
[1728447302507,1.7352519,144.13,144.09,6.94]
[1728447302816,6.9378,144.14,144.1,6.9396]
[1728447303121,8.67254442,144.14,144.1,6.9396]
[1728447303283,25.17703639,144.18,144.1,19.89495119]
[1728447303284,6.9373,144.15,144.1,19.89495119]
[1728447303480,1.73460185,144.14,144.1,19.89495119]
[1728447303697,6.9368,144.16,144.11,8.32648099]
[1728447303902,1.73450698,144.15,144.11,8.32648099]
[1728447304095,1.73450698,144.15,144.11,6.9388]
[1728447304710,6.9373,144.15,144.11,6.9388]
[1728447306214,6.9373,144.15,144.11,8.32642127]
[1728447306623,1.73452659,144.14,144.11,6.9388]
[1728447306913,6.9373,144.15,144.11,6.9388]
[1728447307302,1.73452701,144.14,144.11,6.9388]
[1728447307501,6.9373,144.15,144.11,8.32641213]
[1728447308598,6.9373,144.15,144.11,6.9388]
[1728447308829,1.7344979,144.14,144.11,6.9388]
[1728447309206,6.9373,144.15,144.11,6.9388]
[1728447309816,1.73451522,144.14,144.11,6.9388]
[1728447310019,6.9373,144.15,144.11,6.9388]
[1728447311605,6.9368,144.16,144.12,6.9386]
[1728447315016,6.9368,144.16,144.12,23.776884]
[1728447316323,6.9368,144.16,144.12,30.715184]
[1728447316526,6.9366,144.17,144.12,30.715184]
[1728447316826,6.9376,144.15,144.11,6.4226]
[1728447318327,1.73443347,144.18,144.12,15.4279]
[1728447318536,6.9368,144.16,144.12,15.4279]
[1728447319614,1.73443347,144.18,144.12,15.4279]
[1728447319925,6.9373,144.15,144.12,15.4279]
[1728447321411,1.73443347,144.18,144.12,15.4279]
[1728447321726,6.9377,144.14,144.12,15.4279]
[1728447325303,6.9386,144.12,144.08,15.6392]
[1728447325528,6.9388,144.12,144.08,15.6392]
[1728447325730,6.9388,144.12,144.08,22.5797]
[1728447327116,8.67396338,144.11,144.08,15.6392]
[1728447327313,6.9392,144.11,144.08,15.6392]
[1728447331970,1.73491942,144.14,144.08,15.6392]
[1728447332117,6.9399,144.1,144.07,6.6443]
[1728447332418,6.9401,144.09,144.07,6.6443]
[1728447334010,6.9401,144.09,144.04,32.4688]
[1728447334011,6.9405,144.08,144.04,39.4111]
[1728447334235,6.9405,144.08,144.04,45.42415119]
[1728447334940,6.9411,144.07,144.04,32.4688]
[1728447335721,6.9411,144.07,144.04,15.1134]
[1728447336226,6.9406,144.08,144.04,15.1134]
[1728447337132,6.9406,144.08,144.04,22.0558]
[1728447341626,6.9402,144.09,144.05,1.38822768]
[1728447342019,1.73527774,144.08,144.04,22.0558]
[1728447342240,6.9402,144.09,144.05,1.38822253]
[1728447342851,6.9402,144.09,144.04,22.0558]
[1728447343141,1.7352766,144.08,144.04,22.0558]
[1728447344443,8.6761766,144.08,144.04,15.1134]
[1728447344625,8.67655197,144.07,144.04,15.1134]
[1728447344819,6.9412,144.07,144.04,15.1134]
[1728447352126,6.9405,144.09,144.04,16.50171594]
[1728447352459,1.73532536,144.08,144.04,16.50171594]
[1728447352641,6.9407,144.08,144.04,23.44411594]
[1728447352847,6.9407,144.08,144.04,22.0558]
[1728447357153,8.67647726,144.07,144.04,15.1134]
[1728447357362,6.9412,144.07,144.04,15.1134]
[1728447359452,1.73539805,144.06,144.04,15.1134]
[1728447359761,8.67699805,144.06,144.03,23.417]
[1728447359964,6.9416,144.06,144.03,23.417]
[1728447360985,1.0,144.13,144.01,16.1022]
[1728447360986,1.73551021,144.05,144.01,16.1022]
[1728447361150,1.0,144.13,144.01,16.1022]
[1728447361152,6.9426,144.04,144.01,16.1022]
[1728447367837,1.73580585,144.08,144.02,44.73003663]
[1728447367967,6.9411,144.07,144.03,6.9429]
[1728447368844,6.9409,144.08,144.04,23.776884]
[1728447369065,8.67644323,144.07,144.03,6.9429]
[1728447369363,6.9411,144.07,144.03,6.9429]
[1728447369742,6.9411,144.07,144.02,36.92235119]
[1728447369743,1.73543891,144.06,144.02,6.6092]
[1728447369956,6.9426,144.04,144.02,6.6092]
[1728447371244,6.9421,144.05,144.02,6.6092]
[1728447375953,1.73568629,144.09,144.02,13.5526]
[1728447375954,6.9417,144.06,144.02,13.5526]
[1728447376159,6.9417,144.06,144.02,14.94103618]
[1728447376456,1.73568629,144.09,144.02,13.5526]
[1728447376659,6.9411,144.07,144.02,13.5526]
[1728447377368,6.9411,144.07,144.03,1.38843401]
[1728447377676,8.67714251,144.06,144.02,13.5526]
[1728447377880,6.9416,144.06,144.02,13.5526]
[1728447379078,6.9416,144.06,144.02,6.6092]
[1728447379858,1.73555357,144.09,144.02,6.6092]
[1728447380175,6.942,144.05,144.02,6.6092]
[1728447381678,6.9416,144.06,144.02,13.5525]
[1728447382456,6.9409,144.08,144.03,6.9428]
[1728447382663,6.9409,144.08,144.03,30.719684]
[1728447382905,8.6763008,144.08,144.03,30.719684]
[1728447383084,8.6763008,144.08,144.04,1.38830998]
[1728447383382,8.6763008,144.08,144.03,23.776884]
[1728447383383,6.9409,144.08,144.03,23.776884]
[1728447383568,6.9409,144.08,144.04,6.9424]
[1728447385096,6.9402,144.09,144.04,6.9424]
[1728447385274,1.73526097,144.08,144.04,6.9424]
[1728447386288,8.67586097,144.08,144.04,6.9424]
[1728447386464,6.9392,144.11,144.05,56.341184]
[1728447386664,6.9397,144.1,144.06,19.89645119]
[1728447387064,6.9397,144.1,144.07,23.776884]
[1728447388792,8.67436069,144.12,144.07,36.991484]
[1728447388993,6.9391,144.12,144.08,1.38794323]
[1728447390090,1.73481063,144.15,144.08,21.28359899]
[1728447390091,6.9382,144.13,144.08,21.28359899]
[1728447392071,6.9382,144.13,144.09,23.776884]
[1728447392471,1.73481063,144.15,144.09,23.776884]
[1728447392679,6.9388,144.12,144.08,23.776884]
[1728447394401,6.9388,144.12,144.08,23.58224653]
[1728447394596,1.7347654,144.14,144.08,23.58224653]
[1728447394795,6.9382,144.13,144.09,6.94]
[1728447394995,6.9382,144.13,144.1,1.38770919]
[1728447395176,1.73464256,144.15,144.1,16.57000919]
[1728447395508,6.9376,144.15,144.1,23.50950919]
[1728447396085,6.9378,144.14,144.1,23.50950919]
[1728447397386,6.9378,144.14,144.1,22.1218]
[1728447397596,6.9378,144.14,144.11,23.776884]
[1728447406324,6.9378,144.14,144.11,23.776884]
[1728447410618,6.9373,144.15,144.11,32.10347757]
[1728447410909,6.9373,144.15,144.11,30.715884]
[1728447411106,6.9373,144.15,144.11,32.10341891]
[1728447411502,1.73454271,144.18,144.12,6.2921]
[1728447411818,6.9368,144.16,144.13,1.38743727]
[1728447412002,6.9368,144.16,144.12,13.2307]
[1728447412306,6.9372,144.15,144.12,6.2921]
[1728447412717,1.73440693,144.18,144.12,6.2921]
[1728447412896,6.9377,144.14,144.12,6.2921]
[1728447414507,6.9381,144.13,144.11,23.776884]
[1728447420601,6.9381,144.13,144.1,15.1823]
[1728447421614,1.73450395,144.16,144.1,15.1823]
[1728447421797,6.9377,144.14,144.11,23.776884]
[1728447423121,1.73448572,144.19,144.12,1.38758857]
[1728447423315,6.9368,144.16,144.11,43.67103519]
[1728447424723,1.73448572,144.19,144.11,43.67103519]
[1728447424926,6.9373,144.15,144.11,43.67103519]
[1728447425417,6.9367,144.16,144.11,43.67103519]
[1728447425604,6.9367,144.16,144.11,36.73223519]
[1728447425805,6.9363,144.17,144.13,23.776884]
[1728447429899,6.9367,144.16,144.13,23.776884]
[1728447430404,6.9366,144.17,144.13,23.776884]
[1728447431501,6.9368,144.16,144.13,23.776884]
[1728447432624,6.9368,144.16,144.12,13.0435]
[1728447432625,6.9372,144.15,144.12,6.1053]
[1728447432807,6.9377,144.14,144.12,6.1053]
[1728447435623,1.73448572,144.19,144.1,15.1823]
[1728447435624,6.9381,144.13,144.1,15.1823]
[1728447435922,6.9381,144.13,144.11,23.776884]
[1728447436129,1.73448526,144.17,144.11,23.776884]
[1728447436310,6.9378,144.14,144.11,23.776884]
[1728447436500,6.9383,144.13,144.11,23.776884]
[1728447441131,6.9383,144.13,144.1,15.1823]
[1728447447634,6.9377,144.14,144.1,22.1216]
[1728447448130,1.73448526,144.17,144.11,23.776884]
[1728447448333,6.9372,144.15,144.11,30.715784]
[1728447452332,1.73448238,144.14,144.1,32.5309]
[1728447452539,8.67228238,144.14,144.1,39.4704]
[1728447452719,6.9378,144.14,144.1,39.4704]
[1728447459447,1.73461565,144.17,144.1,39.4704]
[1728447459737,6.9373,144.15,144.1,39.4704]
[1728447459941,1.73461248,144.14,144.1,39.4704]
[1728447462637,6.9373,144.15,144.11,6.9387]
[1728447463230,6.9368,144.16,144.11,6.9387]
[1728447463441,8.67127934,144.16,144.11,6.9387]
[1728447464020,8.67127934,144.16,144.12,6.9385]
[1728447464542,6.9368,144.16,144.12,6.9385]
[1728447464941,1.7344195,144.17,144.12,6.9385]
[1728447465245,1.7344195,144.17,144.13,6.9378]
[1728447466944,1.7344195,144.17,144.13,8.32527602]
[1728447467144,8.6708195,144.17,144.13,6.9378]
[1728447467444,1.73434503,144.16,144.13,6.9378]
[1728447468446,1.73434503,144.16,144.12,24.2843]
[1728447481758,1.7343379,144.2,144.13,23.776884]
[1728447481945,6.9358,144.18,144.14,6.9375]
[1728447482461,6.9358,144.18,144.14,8.3248633]
[1728447483354,8.67040398,144.17,144.13,36.833484]
[1728447483559,6.9362,144.17,144.13,36.833484]
[1728447501461,8.67093314,144.16,144.12,17.3458]
[1728447501667,1.73439894,144.15,144.12,17.3458]
[1728447501863,8.67169894,144.15,144.12,17.3458]
[1728447502172,6.9373,144.15,144.12,17.3458]
[1728447510549,6.9385,144.13,144.1,15.1823]
[1728447524081,6.9385,144.13,144.1,16.57007053]
[1728447525969,6.9385,144.13,144.1,15.1823]
[1728447540985,1.73472208,144.12,144.06,40.1338]
[1728447541189,1.73494075,144.14,144.06,40.1338]
[1728447541490,1.73494075,144.14,144.06,47.0752]
[1728447541491,6.9394,144.11,144.06,47.0752]
[1728447542200,6.9394,144.11,144.07,23.776884]
[1728447542693,6.9394,144.11,144.06,47.0752]
[1728447543979,6.9388,144.12,144.08,6.9404]
[1728447544190,6.9388,144.12,144.08,8.32828561]
[1728447544897,6.9388,144.12,144.08,6.9404]
[1728447545701,6.9388,144.12,144.07,30.717784]
[1728447545702,1.73485672,144.11,144.07,30.717784]
[1728447547404,1.73485672,144.11,144.07,6.9409]
[1728447547906,8.67415672,144.11,144.07,6.9409]
[1728447548108,6.9393,144.11,144.07,6.9409]
[1728447548911,6.9393,144.11,144.06,47.0752]
[1728447566418,6.9393,144.11,144.07,1.3879644]
[1728447568023,6.9393,144.11,144.06,47.0752]
[1728447570319,6.9401,144.09,144.06,40.1338]
[1728447571315,6.9397,144.1,144.06,40.1338]
[1728447576416,6.9397,144.1,144.06,47.0753]
[1728447586745,6.9386,144.12,144.08,6.9405]
[1728447587039,6.9384,144.13,144.09,1.38786581]
[1728447587637,6.9388,144.12,144.08,6.9405]
[1728447591044,6.9388,144.12,144.07,19.89625119]
[1728447591432,6.9388,144.12,144.07,12.95535119]
[1728447591638,6.9388,144.12,144.08,6.9405]
[1728447592532,6.9388,144.12,144.09,1.38782546]
[1728447595649,6.9388,144.12,144.08,6.9405]
[1728447597658,6.9388,144.12,144.09,1.3878249]
[1728447598236,6.9388,144.12,144.08,6.9405]
[1728447598444,6.9388,144.12,144.07,19.89625119]
[1728447604944,6.9388,144.12,144.08,1.38782427]
[1728447607468,6.9391,144.11,144.07,19.89625119]
[1728447608082,6.9391,144.11,144.07,6.9409]
[1728447612583,6.9396,144.1,144.07,23.776884]
[1728447612875,6.9401,144.09,144.07,23.776884]
[1728447613260,1.73508326,144.14,144.07,23.776884]
[1728447613261,6.9397,144.1,144.07,23.776884]
[1728447614676,6.9397,144.1,144.06,47.0753]
[1728447616778,6.9397,144.1,144.07,23.776884]
[1728447616968,6.9391,144.12,144.08,1.38785887]
[1728447617361,1.73508326,144.14,144.07,30.717884]
[1728447617675,6.9392,144.11,144.07,23.776884]
[1728447617973,6.9396,144.1,144.06,47.0752]
[1728447619281,6.9396,144.1,144.07,1.38792145]
[1728447620286,6.9395,144.11,144.06,47.0752]
[1728447622770,1.73508326,144.14,144.06,47.0752]
[1728447623084,6.9396,144.1,144.06,47.0752]
[1728447627969,6.9396,144.1,144.06,40.1338]
[1728447630097,1.73508326,144.14,144.06,40.1338]
[1728447630277,6.9405,144.09,144.06,22.7808]
[1728447632597,1.73509642,144.12,144.04,6.9424]
[1728447632598,6.9406,144.08,144.04,6.9424]
[1728447632771,17.3483,144.11,144.03,21.7701]
[1728447632975,6.9416,144.06,144.03,21.7701]
[1728447633298,6.9411,144.07,144.03,21.7701]
[1728447635201,6.9415,144.06,144.03,21.7701]
[1728447637707,6.942,144.05,144.03,15.3272]
[1728447642115,6.942,144.05,144.01,6.9438]
[1728447646309,6.9434,144.03,144.01,23.776884]
[1728447646509,6.9434,144.03,144.0,6.2253]
[1728447646697,6.9436,144.02,143.99,15.2961]
[1728447654829,6.9436,144.02,143.99,14.7961]
[1728447662143,6.9431,144.03,144.0,1.38870819]
[1728447662646,6.9431,144.03,143.99,21.7408]
[1728447663555,6.9431,144.03,143.99,14.7961]
[1728447664649,6.9436,144.02,143.99,14.7961]
[1728447666241,6.9444,144.0,143.97,17.3638]
[1728447675524,6.945,143.99,143.96,21.5468]
[1728447675883,1.73611759,144.04,143.96,21.5468]
[1728447675884,6.9455,143.98,143.96,21.5468]
[1728447677656,6.946,143.97,143.94,17.3678]
[1728447680137,1.73630531,144.02,143.94,17.3678]
[1728447680466,6.9455,143.98,143.94,17.3678]
[1728447680661,6.9455,143.98,143.94,24.3151]
[1728447683135,1.73630531,144.02,143.95,23.776884]
[1728447683644,6.9448,144.0,143.95,30.723584]
[1728447684156,1.73630531,144.02,143.95,30.723584]
[1728447684355,6.9449,143.99,143.95,30.723584]
[1728447685667,1.73630531,144.02,143.96,6.9462]
[1728447686094,6.9443,144.01,143.96,6.9462]
[1728447687847,6.9447,144.0,143.96,6.9462]
[1728447688473,1.73630531,144.02,143.95,23.776884]
[1728447688644,6.9449,143.99,143.95,30.723684]
[1728447688850,1.73630531,144.02,143.95,23.776884]
[1728447689080,1.73630531,144.02,143.94,17.3678]
[1728447689081,6.9454,143.98,143.94,17.3678]
[1728447689369,6.9467,143.96,143.93,22.6903]
[1728447689571,6.946,143.97,143.94,23.776884]
[1728447690075,6.946,143.97,143.93,29.638]
[1728447694157,1.73644508,144.0,143.94,23.776884]
[1728447694588,19.78686759,144.04,143.95,17.3661]
[1728447694874,6.944,144.01,143.97,6.9454]
[1728447695098,6.9446,144.0,143.96,43.67843519]
[1728447698570,19.78686759,144.04,143.96,43.67843519]
[1728447698571,6.944,144.01,143.97,6.9457]
[1728447707816,6.9444,144.0,143.96,43.67853519]
[1728447714907,6.9444,144.0,143.96,30.723184]
[1728447716791,19.78686759,144.04,143.95,17.3661]
[1728447716907,19.78686759,144.04,143.93,22.6903]
[1728447716908,6.9467,143.96,143.93,22.6903]
[1728447717893,6.9469,143.95,143.9,29.1038]
[1728447718085,6.9474,143.94,143.9,29.1038]
[1728447722531,37.1550577,143.99,143.9,22.1547]
[1728447722708,6.9479,143.93,143.9,22.1547]
[1728447726125,6.9483,143.92,143.88,6.9502]
[1728447732943,6.9483,143.92,143.88,23.776884]
[1728447733316,1.73713634,143.91,143.86,22.1471]
[1728447733541,6.9501,143.89,143.86,22.1471]
[1728447734236,6.9502,143.88,143.86,15.9332]
[1728447734443,6.9502,143.88,143.83,59.02495119]
[1728447735316,1.73745883,143.92,143.85,12.95535119]
[1728447735515,6.9488,143.91,143.87,12.95535119]
[1728447737222,6.9488,143.91,143.86,6.9507]
[1728447737422,6.9488,143.91,143.86,19.90605119]
[1728447741255,1.73730837,143.95,143.87,25.1667307]
[1728447741449,1.73717298,143.96,143.9,12.95535119]
[1728447741749,1.73717298,143.96,143.91,1.38948907]
[1728447741750,6.9473,143.94,143.91,1.38948907]
[1728447742468,6.947,143.95,143.92,12.95535119]
[1728447742744,6.9457,143.98,143.94,12.95535119]
[1728447742945,6.945,143.99,143.96,12.95535119]
[1728447743152,6.945,143.99,143.94,19.90265119]
[1728447743642,6.945,143.99,143.96,12.95535119]
[1728447744062,6.945,143.99,143.95,14.34442219]
[1728447744347,6.9454,143.98,143.95,14.34442219]
[1728447744925,6.9454,143.98,143.94,6.9473]
[1728447745243,6.9449,143.99,143.95,12.95535119]
[1728447746133,1.73674187,144.01,143.96,1.38901633]
[1728447746336,6.9444,144.0,143.95,19.90205119]
[1728447746533,6.9444,144.0,143.96,1.38900419]
[1728447746729,6.9444,144.0,143.95,19.90205119]
[1728447747130,6.9444,144.0,143.96,8.33530401]
[1728447747655,6.9439,144.01,143.97,12.95535119]
[1728447760270,6.9449,143.99,143.96,23.776884]
[1728447761560,34.715,144.03,143.94,23.776884]
[1728447761767,6.9464,143.96,143.94,23.776884]
[1728447762266,1.73643185,144.02,143.94,23.776884]
[1728447762267,6.9459,143.97,143.94,23.776884]
[1728447764777,6.9459,143.97,143.93,29.61855119]
[1728447767999,6.9459,143.97,143.93,36.56625119]
[1728447768972,6.9453,143.99,143.94,30.724084]
[1728447769360,6.9453,143.99,143.95,6.9467]
[1728447770583,6.9453,143.99,143.94,30.724084]
[1728447770871,1.73624018,144.03,143.94,30.724084]
[1728447771074,6.9455,143.98,143.94,30.724084]
[1728447771973,6.9449,143.99,143.95,6.9467]
[1728447772276,1.73624018,144.03,143.95,12.95535119]
[1728447774082,6.9449,143.99,143.95,19.90195119]
[1728447774558,6.9449,143.99,143.95,6.9466]
[1728447774969,6.9449,143.99,143.94,41.144784]
[1728447775158,6.9449,143.99,143.94,48.091984]
[1728447776275,6.9449,143.99,143.94,41.144784]
[1728447776638,6.9449,143.99,143.95,8.33571214]
[1728447777365,6.9449,143.99,143.95,6.9467]
[1728447780490,6.9444,144.0,143.96,8.33527819]
[1728447780984,6.9438,144.02,143.97,23.776884]
[1728447781187,6.9438,144.02,143.98,1.38877727]
[1728447782563,6.944,144.01,143.98,1.38877727]
[1728447784597,6.9435,144.02,143.98,6.9452]
[1728447784901,6.945,143.99,143.97,16.3821]
[1728447785065,6.945,143.99,143.96,6.3131]
[1728447785066,17.3578,144.03,143.96,6.3131]
[1728447785451,1.73630374,144.02,143.93,40.2055]
[1728447785810,6.9455,143.98,143.93,47.1529]
[1728447787070,6.9455,143.98,143.93,60.10825119]
[1728447788391,6.9459,143.97,143.93,60.10825119]
[1728447788942,6.9459,143.97,143.93,53.16085119]
[1728447791592,6.9459,143.97,143.93,60.10855119]
[1728447794685,1.7363729,144.0,143.94,23.776884]
[1728447794894,6.945,143.99,143.94,30.723784]
[1728447795097,6.9455,143.98,143.94,30.723784]
[1728447811616,6.9455,143.98,143.95,1.38906514]
[1728447811800,6.9455,143.98,143.94,30.723784]
[1728447830330,1.73622838,144.0,143.93,40.2055]
[1728447830502,6.946,143.97,143.93,47.1532]
[1728447836824,6.946,143.97,143.93,60.10855119]
[1728447837407,6.9455,143.98,143.93,60.10855119]
[1728447840525,6.9455,143.98,143.93,47.1532]
[1728447840530,6.9474,143.94,143.9,6.9488]
[1728447841020,6.9474,143.94,143.89,33.6551]
[1728447841328,6.9474,143.94,143.89,40.6046]
[1728447842121,6.9474,143.94,143.9,23.776884]
[1728447842416,6.947,143.95,143.9,36.73223519]
[1728447842637,1.73643716,143.97,143.9,36.73223519]
[1728447842638,6.9465,143.96,143.91,6.9484]
[1728447850935,6.9469,143.95,143.91,6.9484]
[1728447871132,6.9483,143.92,143.87,6.9503]
[1728447872657,6.9483,143.92,143.88,23.776884]
[1728447872959,6.9483,143.92,143.88,6.9501]
[1728447873471,6.9483,143.92,143.89,23.776884]
[1728447875860,6.9483,143.92,143.88,19.90545119]
[1728447881962,2.43067164,143.96,143.89,41.151084]
[1728447882166,6.9479,143.93,143.89,48.100684]
[1728447895474,6.9479,143.93,143.89,41.151084]
[1728447897685,6.9486,143.92,143.88,28.2709]
[1728447897868,6.9486,143.92,143.88,21.3208]
[1728447898464,6.9488,143.91,143.88,21.3208]
[1728447901065,6.9488,143.91,143.89,1.38973304]
[1728447901262,1.737152,143.94,143.89,1.38973304]
[1728447901472,6.9484,143.92,143.89,1.38973304]
[1728447902181,1.737152,143.94,143.9,32.11570048]
[1728447902182,6.9474,143.94,143.9,32.11570048]
[1728447902487,19.09743511,144.01,143.94,23.776884]
[1728447902983,6.9454,143.98,143.94,23.776884]
[1728447904785,6.945,143.99,143.94,23.776884]
[1728447904964,6.945,143.99,143.95,21.29113808]
[1728447905597,6.945,143.99,143.95,12.95535119]
[1728447907904,6.945,143.99,143.96,1.38899686]
[1728447909882,6.945,143.99,143.95,12.95535119]
[1728447912211,6.9473,143.94,143.93,21.4323]
[1728447912417,6.9469,143.95,143.93,21.4323]
[1728447912576,1.73657122,143.98,143.93,21.4323]
[1728447912785,1.73649531,144.01,143.94,1.38919625]
[1728447912992,6.9455,143.98,143.94,1.38919625]
[1728447913316,6.9455,143.98,143.94,6.9472]
[1728447914900,6.9455,143.98,143.95,23.776884]
[1728447915318,6.945,143.99,143.95,23.776884]
[1728447920217,6.9444,144.0,143.95,23.776884]
[1728447920431,6.944,144.01,143.96,8.33501496]
[1728447920921,6.944,144.01,143.96,21.29036615]
[1728447921317,6.944,144.01,143.96,19.90135119]
[1728447921525,1.7362687,144.04,143.97,23.776884]
[1728447921526,6.9435,144.02,143.97,23.776884]
[1728447921724,1.7362687,144.04,143.98,21.9342]
[1728447922020,6.9439,144.01,143.98,21.9342]
[1728447942054,1.7362687,144.04,143.96,23.776884]
[1728447942055,6.945,143.99,143.96,23.776884]
[1728447943330,6.9455,143.98,143.95,23.776884]
[1728447944247,6.9449,143.99,143.95,23.776884]
[1728447945247,6.9449,143.99,143.95,30.723584]
[1728447958359,6.9445,144.0,143.95,30.723584]
[1728447960454,6.9445,144.0,143.95,23.776884]
[1728447960645,6.9439,144.01,143.97,6.9458]
[1728447961053,6.9439,144.01,143.97,8.33466848]
[1728447961367,6.9439,144.01,143.97,6.9458]
[1728447963063,6.9435,144.02,143.98,19.90065119]
[1728447963362,6.9429,144.04,144.0,6.9443]
[1728447963553,1.73582981,144.08,143.99,29.5646]
[1728447963748,6.943,144.03,143.99,22.6199]
[1728447965771,1.7358921,144.06,143.99,22.6199]
[1728447965949,6.9435,144.02,143.99,22.6199]
[1728447966542,6.9431,144.03,143.99,22.6199]
[1728447974350,1.7358921,144.06,143.99,22.6199]
[1728447974557,6.9439,144.01,143.99,16.0867]
[1728447977277,1.7358921,144.06,143.99,16.0867]
[1728447977453,6.9436,144.02,143.99,16.0867]
[1728447980146,17.3555,144.05,143.99,16.0867]
[1728447980474,1.7360924,144.04,143.96,6.4021]
[1728447981280,17.3578,144.03,143.96,6.4021]
[1728447981476,6.9457,143.98,143.95,16.1845]
[1728447986376,6.9463,143.96,143.93,6.0673]
[1728447986566,6.9465,143.96,143.93,6.0673]
[1728447986957,6.9459,143.97,143.93,6.0673]
[1728447989778,17.3631,143.99,143.93,6.0673]
[1728447990076,6.9464,143.96,143.93,6.0673]
[1728447991478,6.9459,143.97,143.93,6.0673]
[1728447998177,19.78956498,144.02,143.93,6.0673]
[1728447998380,6.9465,143.96,143.93,6.0673]
[1728448003761,6.9469,143.95,143.93,6.0673]
[1728448005591,6.9464,143.96,143.93,6.0673]
[1728448006286,6.9459,143.97,143.94,1.38926979]
[1728448007992,6.9459,143.97,143.93,25.97035119]
[1728448010192,6.9459,143.97,143.94,1.3892124]
[1728448010995,1.73669247,143.99,143.94,1.3892124]
[1728448011192,6.9454,143.98,143.94,1.3892124]
[1728448011770,6.9454,143.98,143.93,25.97035119]
[1728448016085,6.945,143.99,143.95,6.9468]
[1728448016400,6.945,143.99,143.96,1.38906762]
[1728448018210,6.9445,144.0,143.95,19.90215119]